{"text_format":"1","workbook":"xlsx","n_sheets":1,"sheets":["Sheet1"],"not_rendered":{"charts":0,"images":0,"macros":1,"external_links":0,"defined_names":1,"comments":0,"pivot_tables":0},"unopened":[],"bounds":{"document_bytes":16777216,"sheet_cells":100000,"rows_first":2000,"rows_last":500,"rows_between":2000,"halvings":0,"cell_chars":16384,"cell_head_chars":4096},"cells_cut":0,"cells_raw":0,"read":"whole","date_system":"1900"}

{"sheet":"Sheet1","index":0,"n_rows":597,"n_cols":128,"rows_kept":597,"cut":false,"hidden":false,"merged":[[2,124,117,124],[118,124,236,124],[237,124,354,124],[38,2,39,4],[38,5,39,31],[261,128,262,140],[295,2,296,8],[287,57,288,83],[287,20,288,54],[291,2,292,8],[295,86,296,101],[275,57,276,83],[145,67,146,81],[161,5,162,14],[151,2,152,16],[154,7,155,13],[154,25,155,35],[158,37,159,76],[154,43,155,53],[154,64,155,73],[154,78,155,86],[161,40,162,78],[151,56,152,86],[148,2,149,29],[365,127,367,131],[362,127,364,134],[355,124,473,124],[391,108,393,121],[398,108,401,121],[158,90,159,118],[154,114,155,119],[154,92,155,95],[263,103,264,121],[413,108,416,121],[154,99,155,104],[256,2,259,121],[242,1,245,121],[154,109,155,112],[173,40,174,70],[200,84,201,121],[164,5,165,16],[255,128,256,140],[208,42,209,81],[265,1,266,9],[267,1,268,9],[263,56,264,84],[265,85,266,102],[158,2,159,32],[474,124,591,124],[307,86,308,101],[418,33,419,55],[413,63,414,83],[415,79,416,80],[583,81,584,100],[581,81,582,100],[579,81,580,100],[576,81,577,100],[574,81,575,100],[565,43,566,54],[580,23,581,33],[410,33,411,58],[413,33,414,58],[484,28,494,36],[406,33,407,54],[405,2,406,25],[395,33,396,57],[479,1,481,40],[482,37,483,81],[429,33,431,55],[484,64,494,72],[422,33,423,66],[484,73,494,81],[273,210,274,218],[274,148,275,161],[274,228,275,242],[271,172,272,188],[272,128,273,136],[287,86,288,101],[275,104,276,121],[270,228,271,238],[271,148,272,158],[275,86,276,101],[269,128,270,145],[269,168,270,199],[270,210,271,221],[268,147,269,166],[269,103,270,121],[273,168,274,190],[272,228,273,238],[267,128,268,145],[279,86,280,101],[275,128,276,136],[261,148,262,157],[261,168,262,205],[261,210,262,221],[262,227,263,248],[263,168,264,203],[264,128,265,146],[264,148,265,165],[264,210,265,221],[264,227,265,248],[265,168,266,185],[266,147,267,166],[266,228,267,238],[267,168,268,197],[267,210,268,221],[268,228,269,242],[255,148,256,157],[255,210,256,222],[256,168,257,197],[235,228,236,236],[245,228,249,248],[252,228,253,248],[254,168,255,177],[254,228,255,235],[236,210,245,221],[245,168,249,176],[256,228,257,237],[252,148,253,157],[231,227,234,248],[231,128,234,145],[231,147,234,166],[231,167,234,208],[231,209,234,226],[212,42,213,81],[212,84,213,121],[216,84,217,121],[252,168,253,191],[252,210,253,221],[235,168,236,183],[236,128,245,139],[236,148,245,157],[237,106,238,109],[252,128,253,140],[164,93,165,106],[170,93,171,112],[167,93,168,104],[265,103,266,121],[267,103,268,121],[265,19,266,55],[267,19,268,55],[271,10,272,18],[265,10,266,18],[269,85,270,102],[170,40,171,81],[200,42,201,81],[164,40,165,78],[267,56,268,84],[269,56,270,84],[267,85,268,102],[193,2,194,39],[173,5,174,34],[484,112,494,121],[356,110,357,116],[486,37,494,45],[486,46,494,54],[482,82,483,121],[433,94,434,106],[475,106,476,109],[475,110,476,116],[475,94,476,105],[379,88,380,100],[364,109,365,121],[379,108,382,121],[415,88,416,95],[415,96,416,101],[405,108,408,121],[394,108,397,121],[402,108,404,121],[426,94,427,106],[441,33,442,49],[403,33,404,73],[399,33,400,73],[381,66,382,78],[413,87,414,106],[484,102,494,111],[583,23,584,36],[579,47,580,66],[577,43,578,74],[577,22,578,41],[573,23,574,40],[575,43,576,73],[581,43,582,68],[303,86,304,101],[496,20,497,26],[423,2,424,22],[434,2,435,14],[482,1,494,9],[482,10,494,18],[438,2,439,22],[436,2,437,17],[482,19,483,36],[432,2,433,18],[426,33,427,74],[437,33,438,59],[484,19,494,27],[536,2,537,8],[536,11,537,17],[421,2,422,17],[484,37,485,54],[589,81,590,90],[240,1,241,54],[248,1,249,121],[250,2,251,121],[253,3,254,21],[253,22,254,55],[271,85,272,102],[263,1,264,9],[536,29,537,35],[275,2,276,8],[415,66,416,78],[418,94,419,106],[279,2,280,8],[287,2,288,8],[279,20,280,55],[283,2,284,8],[283,20,284,55],[299,2,300,8],[331,104,332,121],[335,104,336,121],[569,43,570,78],[571,43,572,79],[479,41,481,121],[496,65,497,71],[98,3,99,7],[101,11,102,51],[98,11,99,27],[98,63,99,110],[82,8,83,47],[587,81,588,88],[561,43,562,55],[500,47,501,53],[500,56,501,62],[500,65,501,71],[508,56,509,62],[508,65,509,71],[540,38,541,44],[564,81,565,92],[575,22,576,41],[536,20,537,26],[500,38,501,44],[504,56,505,62],[508,47,509,53],[508,83,509,90],[512,83,513,90],[516,83,517,90],[520,65,521,71],[552,42,553,79],[50,73,51,121],[50,34,51,70],[68,46,69,56],[65,46,66,56],[65,73,66,121],[68,73,69,121],[71,73,72,90],[71,59,72,66],[68,59,69,70],[5,67,6,85],[11,67,12,86],[6,2,7,23],[10,2,11,65],[14,2,15,65],[17,67,18,72],[17,93,18,106],[21,70,22,84],[24,70,25,84],[21,96,22,116],[24,96,25,116],[10,113,11,121],[73,73,74,78],[10,105,11,109],[26,2,27,64],[28,2,29,30],[30,2,31,28],[28,33,30,36],[28,39,29,64],[30,39,31,64],[10,96,11,104],[65,2,66,9],[68,2,69,43],[71,2,72,17],[43,4,45,121],[62,73,63,121],[50,2,51,31],[47,73,48,92],[53,1,54,42],[59,2,60,21],[71,93,72,121],[56,2,57,121],[47,2,48,32],[65,59,66,71],[47,34,48,68],[62,2,63,70],[104,11,105,35],[77,2,78,33],[74,62,75,66],[74,32,75,38],[73,80,75,89],[86,62,87,71],[77,59,78,110],[73,100,75,120],[86,2,87,4],[80,2,81,4],[80,8,81,47],[80,62,81,77],[74,5,75,13],[82,2,83,4],[89,62,90,87],[101,3,102,7],[92,2,93,64],[101,63,102,70],[95,55,96,59],[101,55,102,59],[95,11,96,30],[98,55,99,59],[95,63,96,91],[95,3,96,7],[128,2,129,37],[145,2,146,65],[133,7,134,11],[133,17,134,21],[133,28,134,33],[142,2,143,23],[139,2,140,120],[142,67,143,82],[142,84,143,96],[142,98,143,121],[130,94,131,121],[130,1,131,37],[130,38,131,93],[133,39,134,93],[133,95,134,120],[136,2,137,37],[204,84,205,121],[204,42,205,81],[204,2,205,39],[216,2,217,39],[263,10,264,18],[267,10,268,18],[269,10,270,18],[323,20,324,54],[323,104,324,121],[315,57,316,83],[311,104,312,121],[315,104,316,121],[319,104,320,121],[323,57,324,83],[323,86,324,101],[528,38,529,44],[528,47,529,53],[528,56,529,62],[528,65,529,71],[544,20,545,26],[544,29,545,35],[496,38,497,44],[275,20,276,54],[212,2,213,39],[253,62,254,98],[279,57,280,83],[356,106,357,109],[331,57,332,83],[335,57,336,83],[315,86,316,101],[319,86,320,101],[299,86,300,101],[484,55,494,63],[339,86,340,101],[364,2,365,105],[379,2,380,24],[587,102,588,112],[583,102,584,121],[536,47,537,53],[536,56,537,62],[559,103,560,113],[570,81,571,92],[572,81,573,89],[568,81,569,92],[557,103,558,113],[540,56,541,62],[540,65,541,71],[540,74,541,80],[558,81,559,93],[562,81,563,93],[573,43,574,61],[536,65,537,71],[536,74,537,80],[585,81,586,100],[540,93,541,100],[544,83,545,90],[548,83,549,90],[536,38,537,44],[554,42,555,79],[563,43,564,66],[567,43,568,74],[585,102,586,121],[504,11,505,17],[508,11,509,17],[504,65,505,71],[508,38,509,44],[540,103,541,110],[540,113,541,120],[544,93,545,100],[544,103,545,110],[561,102,562,121],[544,113,545,120],[540,11,541,17],[540,20,541,26],[540,29,541,35],[581,102,582,121],[563,102,564,121],[566,102,567,112],[568,102,569,116],[516,56,517,62],[516,65,517,71],[512,38,513,44],[512,47,513,53],[496,2,497,8],[500,2,501,8],[504,2,505,8],[508,2,509,8],[500,74,501,80],[500,11,501,17],[504,29,505,35],[508,29,509,35],[504,74,505,80],[508,74,509,80],[496,74,497,80],[496,11,497,17],[496,56,497,62],[500,20,501,26],[504,20,505,26],[508,20,509,26],[504,38,505,44],[504,47,505,53],[496,47,497,53],[331,20,332,54],[327,20,328,54],[331,86,332,101],[339,104,340,121],[335,2,336,8],[339,2,340,8],[335,20,336,54],[339,20,340,54],[344,104,347,121],[335,86,336,101],[344,86,347,101],[331,2,332,8],[384,33,385,47],[379,33,380,58],[388,33,389,64],[396,2,397,29],[381,2,382,5],[381,6,382,22],[384,105,385,106],[394,2,395,25],[384,48,385,104],[379,63,380,83],[392,33,393,82],[409,108,412,121],[344,3,347,54],[319,57,320,83],[383,108,386,121],[387,108,390,121],[368,109,370,121],[356,94,357,105],[381,96,382,101],[381,88,382,95],[377,1,378,121],[381,79,382,80],[373,109,375,121],[327,104,328,121],[327,57,328,83],[327,86,328,101],[373,2,374,41],[361,1,362,121],[327,2,328,8],[323,2,324,8],[319,2,320,8],[339,57,340,83],[367,1,371,107],[359,1,360,121],[383,6,384,27],[2,101,3,104],[161,93,162,110],[2,89,3,100],[2,105,3,111],[119,94,124,105],[119,110,124,116],[73,93,74,98],[279,104,280,121],[27,85,29,121],[30,85,32,121],[35,73,36,98],[27,67,29,83],[59,73,60,116],[38,34,39,70],[38,73,39,121],[30,70,32,83],[33,2,34,49],[35,2,36,32],[35,34,36,68],[41,2,42,38],[5,93,6,121],[21,2,25,63],[104,3,105,7],[167,5,168,16],[76,123,78,123],[303,20,304,54],[311,20,312,54],[86,8,87,51],[151,91,152,121],[291,57,292,83],[291,20,292,45],[295,57,296,83],[295,20,296,51],[307,2,308,8],[311,2,312,8],[307,20,308,55],[83,62,84,84],[145,85,146,95],[145,98,146,120],[295,104,296,121],[307,104,308,121],[311,86,312,101],[303,104,304,121],[307,57,308,83],[311,57,312,83],[303,57,304,83],[208,84,209,121],[287,104,288,121],[315,20,316,54],[315,2,316,8],[303,2,304,8],[232,110,238,116],[253,101,254,121],[208,2,209,39],[319,20,320,54],[167,40,168,81],[176,5,177,35],[291,104,292,121],[299,104,300,121],[261,1,262,121],[269,1,270,9],[232,94,238,105],[299,57,300,83],[299,20,300,54],[291,86,292,101],[263,19,264,55],[263,85,264,102],[271,56,272,84],[269,19,270,55],[271,19,272,55],[265,56,266,84],[170,5,171,16],[596,1,604,121],[417,108,428,121],[432,108,443,121],[448,108,452,121],[441,94,442,106],[445,33,446,56],[417,2,418,17],[419,2,420,14],[433,33,434,54],[429,108,431,121],[484,82,494,91],[484,92,494,101],[444,108,447,121],[437,94,438,106],[422,94,423,106],[449,2,451,29],[496,29,497,35],[500,29,501,35],[512,29,513,35],[512,65,513,71],[496,93,497,100],[496,103,497,110],[496,113,497,120],[500,93,501,100],[500,103,501,110],[500,113,501,120],[496,83,497,90],[500,83,501,90],[504,83,505,90],[512,113,513,120],[516,93,517,100],[516,103,517,110],[516,113,517,120],[504,93,505,100],[504,103,505,110],[504,113,505,120],[508,93,509,100],[508,103,509,110],[508,113,509,120],[520,2,521,8],[520,11,521,17],[520,20,521,26],[520,29,521,35],[512,93,513,100],[512,103,513,110],[516,74,517,80],[512,2,513,8],[516,2,517,8],[516,47,517,53],[512,74,513,80],[512,11,513,17],[516,11,517,17],[520,56,521,62],[512,20,513,26],[516,20,517,26],[516,29,517,35],[512,56,513,62],[516,38,517,44],[528,2,529,8],[528,11,529,17],[528,20,529,26],[528,29,529,35],[524,93,525,100],[524,103,525,110],[524,113,525,120],[520,113,521,120],[524,2,525,8],[524,11,525,17],[524,20,525,26],[524,29,525,35],[524,38,525,44],[524,47,525,53],[524,56,525,62],[524,65,525,71],[524,74,525,80],[520,74,521,80],[520,83,521,90],[524,83,525,90],[520,93,521,100],[520,103,521,110],[520,38,521,44],[520,47,521,53],[532,2,533,8],[532,11,533,17],[532,20,533,26],[532,29,533,35],[532,38,533,44],[532,47,533,53],[532,56,533,62],[532,65,533,71],[532,74,533,80],[544,2,545,8],[557,43,558,60],[556,81,557,92],[559,43,560,59],[540,47,541,53],[544,11,545,17],[544,56,545,62],[544,65,545,71],[548,47,549,53],[544,47,545,53],[540,2,541,8],[540,83,541,90],[560,81,561,92],[578,102,579,121],[570,102,571,112],[572,102,573,112],[551,102,552,121],[553,102,554,121],[532,103,533,110],[532,113,533,120],[528,113,529,120],[528,103,529,110],[555,103,556,113],[528,74,529,80],[528,83,529,90],[528,93,529,100],[532,83,533,90],[532,93,533,100],[536,93,537,100],[536,103,537,110],[536,113,537,120],[576,102,577,121],[566,81,567,92],[582,2,583,10],[579,2,580,10],[553,2,554,19],[556,2,557,14],[559,2,560,14],[562,2,563,14],[568,2,569,14],[576,2,577,19],[571,2,572,20],[565,2,566,14],[563,23,564,32],[566,23,567,32],[569,23,570,32],[551,2,552,19],[548,2,549,8],[548,11,549,17],[548,20,549,26],[548,29,549,35],[574,2,575,19],[557,23,558,32],[560,23,561,32],[2,112,3,118],[123,117,124,122],[237,117,238,122],[356,117,357,122],[475,117,476,122],[58,127,60,134],[553,80,554,97],[551,80,552,98],[123,106,124,109],[283,57,284,83],[283,86,284,101],[216,42,217,81],[544,74,545,80],[548,38,549,44],[552,22,553,39],[554,22,555,39],[548,56,549,62],[548,65,549,71],[548,93,549,100],[548,103,549,110],[548,113,549,120],[548,74,549,80],[544,38,545,44],[536,83,537,90]]}
[]
[]
[null,null,null,null,null,null,null,null,null,null,null,null,null,null,null,null,null,null,null,null,null,null,null,null,null,null,null,null,null,null,null,null,null,null,null,null,null,null,null,null,null,null,null,null,null,null,null,null,null,null,null,null,null,null,null,null,null,null,null,null,null,null,null,null,null,null,null,null,null,null,null,null,null,null,null,null,null,null,null,null,null,null,null,null,null,null,null,null,null,"Contract #",null,null,null,null,null,null,null,null,null,null,null,null,null,null,null,"-HOME-",null,null,null,null,null,null,null,null,null,null,null,null,null,null,null,null,null,null,"PAGE 1"]
[]
[]
[null,null,null,null,null,null,null,null,null,null,null,null,null,null,null,null,null,null,null,null,null,null,null,null,null,null,null,null,null,null,null,null,null,null,null,null,null,null,null,null,null,null,null,null,null,null,null,null,null,null,null,null,null,null,null,null,null,null,null,null,null,null,null,null,null,null,null,"Rep Initial & Date",null,null,null,null,null,null,null,null,null,null,null,null,null,null,null,null,null,null,null,null,null,null,null,null,null,"FOR FISCAL USE ONLY"]
[null,null,"HOME Program"]
[]
[]
[]
[null,null,"First-Time Home-Buyer Project",null,null,null,null,null,null,null,null,null,null,null,null,null,null,null,null,null,null,null,null,null,null,null,null,null,null,null,null,null,null,null,null,null,null,null,null,null,null,null,null,null,null,null,null,null,null,null,null,null,null,null,null,null,null,null,null,null,null,null,null,null,null,null,null,null,null,null,null,null,null,null,null,null,null,null,null,null,null,null,null,null,null,null,null,null,null,null,null,null,null,null,null,null,"IDIS",null,null,null,null,null,null,null,null,null,null,null,null,null,null,null,null,"CAPES"]
[null,null,null,null,null,null,null,null,null,null,null,null,null,null,null,null,null,null,null,null,null,null,null,null,null,null,null,null,null,null,null,null,null,null,null,null,null,null,null,null,null,null,null,null,null,null,null,null,null,null,null,null,null,null,null,null,null,null,null,null,null,null,null,null,null,null,null,"Mgr. Initial & Date"]
[]
[null,null,null,null,null,null,null,null,null,null,null,null,null,null,null,null,null,null,null,null,null,null,null,null,null,null,null,null,null,null," "]
[null,null,"Project Setup Report / Completion Report"]
[]
[]
[null,null,null,null,null,null,null,null,null,null,null,null,null,null,null,null,null,null,null,null,null,null,null,null,null,null,null,null,null,null,null,null,null,null,null,null,null,null,null,null,null,null,null,null,null,null,null,null,null,null,null,null,null,null,null,null,null,null,null,null,null,null,null,null,null,null,null,"Setup",null,null,null,null,null,null,null,null,null,null,null,null,null,null,null,null,null,null,null,null,null,null,null,null,null,"Completion"]
[]
[]
[]
[null,null,"Complete this form as a Setup Report, a Completion Report or a Setup and Completion Report and submit to:",null,null,null,null,null,null,null,null,null,null,null,null,null,null,null,null,null,null,null,null,null,null,null,null,null,null,null,null,null,null,null,null,null,null,null,null,null,null,null,null,null,null,null,null,null,null,null,null,null,null,null,null,null,null,null,null,null,null,null,null,null,null,null,null,null,null,null,"Original Setup",null,null,null,null,null,null,null,null,null,null,null,null,null,null,null,null,null,null,null,null,null,null,null,null,null,"Original Completion"]
[]
[]
[null,null,null,null,null,null,null,null,null,null,null,null,null,null,null,null,null,null,null,null,null,null,null,null,null,null,null,null,null,null,null,null,null,null,null,null,null,null,null,null,null,null,null,null,null,null,null,null,null,null,null,null,null,null,null,null,null,null,null,null,null,null,null,null,null,null,null,null,null,null,"Revised Setup",null,null,null,null,null,null,null,null,null,null,null,null,null,null,null,null,null,null,null,null,null,null,null,null,null,"Revised Completion"]
[]
[null,null,"Department of Housing and Community Development, HOME Program  \n"]
[null,null,null,null,null,null,null,null,null,null,null,null,null,null,null,null,null,null,null,null,null,null,null,null,null,null,null,null,null,null,null,null,null,null,null,null,null,null,null,null,null,null,null,null,null,null,null,null,null,null,null,null,null,null,null,null,null,null,null,null,null,null,null,null,null,null,null,"If Revised, Why?"]
[null,null,"P.O. Box 952054"]
[]
[null,null,"Sacramento, CA 94252-2054",null,null,null,null,null,null,null,null,null,null,null,null,null,null,null,null,null,null,null,null,null,null,null,null,null,null,null,null,null,null,null,null,null,null,null,null,null,null,null,null,null,null,null,null,null,null,null,null,null,null,null,null,null,null,null,null,null,null,null,null,null,null,null,null,null,null,null,"Cancel, Why?"]
[]
[]
[null,null,"Part A: Contractor & Activity Information"]
[]
[null,null,"1. Project Number (HCD Assigned)",null,null,null,null,null,null,null,null,null,null,null,null,null,null,null,null,null,null,null,null,null,null,null,null,null,null,null,null,null,null,null,"2. HUD Activity Number (HCD Assigned)",null,null,null,null,null,null,null,null,null,null,null,null,null,null,null,null,null,null,null,null,null,null,null,null,null,null,null,null,null,null,null,null,null,null,null,null,null,null,"3. HOME Recipient Name"]
[]
[]
[null,null,"M-"]
[]
[]
[null,null,"4. Name of Person Completing Form"]
[]
[]
[]
[]
[null,null,null,null,null,null,null,null,null,null,null,null,null,null,null,null,null,null,null,null,null,null,null,null,null,null,null,null,null,null,null,null,null,null,null,null,null,null,null,null,null,null,null,null,null,null,null,null,null,null,null,null,null,null,null,null,null,null,null,null,null,null,null,null,null,null,null,null,null,null,null,null,null,null,null,null,null,null,null,null,null,null,null,null,null,null,null,null,null,null,null,null,null,null,null,null,null,null," "]
[null,null,"4a. Phone",null,null,null,null,null,null,null,null,null,null,null,null,null,null,null,null,null,null,null,null,null,null,null,null,null,null,null,null,null,null,null,"4b. Fax",null,null,null,null,null,null,null,null,null,null,null,null,null,null,null,null,null,null,null,null,null,null,null,null,null,null,null,null,null,null,null,null,null,null,null,null,null,null,"4c. e-mail"]
[]
[]
[]
[]
[]
[null,"  5. Project Name (i.e.Subdivision Name)"]
[]
[]
[]
[]
[null,null,null,null,null,null,null,null,null,null,null,null,null,null,null,null,null,null,null,null,null,null,null,null,null,null,null,null,null,null,null,null,null,null,null,null,null,null,null,null,null,null,null,null,null,null,null,null,null,null,null,null,null,null,null,null,null,null,null,null,null,null,null,null,null,null,null,null,null,null,null,null,null,null,null,null,null,null,null,null,null,null,null,null,null,null,null,null,null,null,null,null,null,null,null,null,null,null," ",null,null,null,null,null,null,null,null,null,null,null,null,null,null,null,null,null,null,null,null,null,null,null,null,null,null,null,null,"http://www.hcd.ca.gov/fa/home/manual/01/HOME3A_County_Code_Listing.doc"]
[null,null,"5a. Project Address",null,null,null,null,null,null,null,null,null,null,null,null,null,null,null,null,null,null,null,null,null,null,null,null,null,null,null,null,null,null,null,null,null,null,null,null,null,null,null,null,null,null,null,null,null,null,null,null,null,null,null,null,null,null,null,null,null,null,null,null,null,null,null,null,null,null,null,null,null,null,"5b. County & County Code. "]
[]
[]
[null,null,null,null,null,null,null,null,null,null,null,null,null,null,null,null,null,null,null,null,null,null,null,null,null,null,null,null,null,null,null,null,null,null,null,null,null,null,null,null,null,null,null,null,null,null,null,null,null,null,null,null,null,null,null,null,null,null,null,null,null,null,null,null,null,null,null,null,null,null,null,null,null," "]
[]
[]
[null,null,"5c. City",null,null,null,null,null,null,null,null,null,null,null,null,null,null,null,null,null,null,null,null,null,null,null,null,null,null,null,null,null,null,null,null,null,null,null,null,null,null,null,null,null,null,null,"5d. State",null,null,null,null,null,null,null,null,null,null,null,null,"5e. Zip Code",null,null,null,null,null,null,null,null,null,null,null,null,null,"6. HOME Funds (Activity & ADC, no Admin or PI)"]
[]
[]
[null,null,null,null,null,null,null,null,null,null,null,null,null,null,null,null,null,null,null,null,null,null,null,null,null,null,null,null,null,null,null,null,null,null,null,null,null,null,null,null,null,null,null,null,null,null,null,null,null,null,null,null,null,null,null,null,null,null,null,null,null,null,null,null,null,null,null,null,null,null,null,null,null,{"$f":"CI288","v":0}]
[]
[null,null,null,null,null,null,null,null,null,null,null,null,null,null,null,null,null,null,null,null,null,null,null,null,null,null,null,null,null,null,null,null,null,null,null,null,null,null,null,null,null,null,null,null,null,null,null,null,null,null,null,null,null,null,null,null,null,null,null,null,null,null,null,null,null,null,null,null,null,null,null,null,null,null,null,null,null,null,null,null,null,null,null,null,null,null,null,null,null,null,null,null,null,null,null,null,null,null," "]
[null,null,"7. Activity Type",null,null,null,null,null,null,null,null,null,null,null,null,null,null,null,null,null,null,null,null,null,null,null,null,null,null,null,null,null,null,null,null,null,null,null,null,null,null,null,null,null,null,null,null,null,null,null,null,null,null,null,null,null,null,null,null,"8. Infill?",null,null,null,null,null,null,null,null,null,null,null,null,null,"9. Proposed Total",null,null,null,null,null,null,null,null,null,null,null,null,null,null,null,null,null,null,null,"10. Proposed HOME Assisted"]
[]
[null,null,null,null,null,null,null,null,null,null,null,null,null,null,null,null,null,null,null,null,null,null,null,null,null,null,null,null,null,null,null,null,null,null,null,null,null,null,null,null,null,null,null,null,null,null,null,null,null,null,null,null,null,null,null,null,null,null,null,null,null,null,null,null,null,null,null,null,null,null,null,null,null,"Units",null,null,null,null,null,null,null,null,null,null,null,null,null,null,null,null,null,null,null,"Units"]
[null,null,null,null,null,"Program",null,null,null,null,null,null,null,null,null,null,null,null,null,null,null,null,null,null,null,null,null,null,null,null,null,null,"Project",null,null,null,null,null,null,null,null,null,null,null,null,null,null,null,null,null,null,null,null,null,null,null,null,null,null,null,null,null,"Yes"]
[]
[null,null,null,null,null,null,null,null,null,null,null,null,null,null,null,null,null,null,null,null,null,null,null,null,null,null,null,null,null,null,null,null,null,null,null,null,null,null,null,null,null,null,null,null,null,null,null,null,null,null,null,null,null,null,null,null,null,null,null,null,null,null,null,null,null,null,null,null,null,null,null,null,null,null,null,null,null,null,null,null,null,null,null,null,null,null,null,null,null,null,null,null,null,null,null,null,null,null," ",null,null,null,null,null,null,null,null,null,null,null,null,null,null,null,null,null,null,null,null,null,null,null,null,3]
[null,null,"11. Contract Activity (Check one)",null,null,null,null,null,null,null,null,null,null,null,null,null,null,null,null,null,null,null,null,null,null,null,null,null,null,null,null,null,null,null,null,null,null,null,null,null,null,null,null,null,null,null,null,null,null,null,null,null,null,null,null,null,null,null,null,"12. Special Purpose of Activity (Check all that apply)"]
[]
[]
[null,null,null,null,null,null,null,null,null,null,null,null,null,null,null,null,null,null,null,null,null,null,null,null,null,null,null,null,null,null,null,null,null,null,null,null,null,null,null,null,null,null,null,null,null,null,null,null,null,null,null,null,null,null,null,null,null,null,null,null,null,null,"Help Homeless"]
[]
[null,null,"a.",null,null,null,null,null,"FTHB-New Construction"]
[null,null,null,null,null,null,null,null,null,null,null,null,null,null,null,null,null,null,null,null,null,null,null,null,null,null,null,null,null,null,null,null,null,null,null,null,null,null,null,null,null,null,null,null,null,null,null,null,null,null,null,null,null,null,null,null,null,null,null,null,null,null,"Prevent Homelessness"]
[]
[]
[null,null,"b.",null,null,null,null,null,"FTHB-Acquisition with or without Rehab",null,null,null,null,null,null,null,null,null,null,null,null,null,null,null,null,null,null,null,null,null,null,null,null,null,null,null,null,null,null,null,null,null,null,null,null,null,null,null,null,null,null,null,null,null,null,null,null,null,null,null,null,null,"HIV/AIDS"]
[]
[]
[null,null,null,null,null,null,null,null,null,null,null,null,null,null,null,null,null,null,null,null,null,null,null,null,null,null,null,null,null,null,null,null,null,null,null,null,null,null,null,null,null,null,null,null,null,null,null,null,null,null,null,null,null,null,null,null,null,null,null,null,null,null,"Help person w/Disabilities"]
[]
[]
[null,null,"13. Special areas where Activity is located: (Check all that apply)"]
[]
[]
[null,null,null,"Yes",null,null,null,null,null,null,null,"CDBG strategy area",null,null,null,null,null,null,null,null,null,null,null,null,null,null,null,null,null,null,null,null,null,null,null,null,null,null,null,null,null,null,null,null,null,null,null,null,null,null,null,null,null,null,null,"Yes",null,null,null,null,null,null,null,"Brownfield redevelpment area"]
[]
[]
[null,null,null,"Yes",null,null,null,null,null,null,null,"Local target area",null,null,null,null,null,null,null,null,null,null,null,null,null,null,null,null,null,null,null,null,null,null,null,null,null,null,null,null,null,null,null,null,null,null,null,null,null,null,null,null,null,null,null,"Yes",null,null,null,null,null,null,null,"Conversion from non-residential to residential use"]
[]
[]
[null,null,null,"Yes",null,null,null,null,null,null,null,"Presidentially-declared major disaster area",null,null,null,null,null,null,null,null,null,null,null,null,null,null,null,null,null,null,null,null,null,null,null,null,null,null,null,null,null,null,null,null,null,null,null,null,null,null,null,null,null,null,null,"Yes",null,null,null,null,null,null,null,"Colonia"]
[]
[]
[null,null,null,"Yes",null,null,null,null,null,null,null,"Historic preservation area"]
[]
[]
[]
[]
[]
[]
[]
[]
[]
[]
[]
[]
[]
[null,null,null,null,null,null,null,null,null,null,null,null,null,null,null,null,null,null,null,null,null,null,null,null,null,null,null,null,null,null,null,null,null,null,null,null,null,null,null,null,null,null,null,null,null,null,null,null,null,null,null,null,null,null,null,null,null,null,null,null,null,null,null,null,null,null,null,null,null,null,null,null,null,null,null,null,null,null,null,null,null,null,null,null,null,null,null,null,null,null,null,null,null,null,null,null,null,null,null,null,null,null,null,null,null,null,null,null,null,null,null,null,null,null,null,null,null,null,null,null,null,null,null,null,"PAGE 2"]
[null,null,null,null,null,null,null,null,null,null,null,null,null,null,null,null,null,null,null,null,null,null,null,null,null,null,null,null,null,null,null,null,null,null,null,null,null,null,null,null,null,null,null,null,null,null,null,null,null,null,null,null,null,null,null,null,null,null,null,null,null,null,null,null,null,null,null,null,null,null,null,null,null,null,null,null,null,null,null,null,null,null,null,null,null,null,null,null,null,null,null,null,null,null,"Contract #",null,null,null,null,null,null,null,null,null,null,null,null,null,null,null,"-HOME-"]
[]
[]
[]
[null,null,null,null,null,null,null,null,null,null,null,null,null,null,null,null,null,null,null,null,null,null,null,null,null,null,null,null,null,null,null,null,null,null,null,null,null,null,null,null,null,null,null,null,null,null,null,null,null,null,null,null,null,null,null,null,null,null,null,null,null,null,null,null,null,null,null,null,null,null,null,null,null,null,null,null,null,null,null,null,null,null,null,null,null,null,null,null,null,null,null,null,null,null,null,null,null,null,null,null,null,null,null,null,null,null,{"$f":"CX3","v":0},null,null,null,null,null,null,null,null,null,null,{"$f":"DI3","v":0}]
[]
[]
[]
[]
[null,null,"Part B:  Project Information"]
[]
[null,"1. Name of Owner or Firm",null,null,null,null,null,null,null,null,null,null,null,null,null,null,null,null,null,null,null,null,null,null,null,null,null,null,null,null,null,null,null,null,null,null,null,null,"1a. Name of Owner or firm (if different from project name) Last Name",null,null,null,null,null,null,null,null,null,null,null,null,null,null,null,null,null,null,null,null,null,null,null,null,null,null,null,null,null,null,null,null,null,null,null,null,null,null,null,null,null,null,null,null,null,null,null,null,null,null,null,null,null,null,null,"1b. First Name"]
[]
[]
[null,null,null,null,null,null,null,"Mr.",null,null,null,null,null,null,null,null,null,"Mrs.",null,null,null,null,null,null,null,null,null,null,"Ms."]
[]
[]
[null,null,"2. Address"]
[]
[]
[]
[]
[]
[null,null,"2a. City",null,null,null,null,null,null,null,null,null,null,null,null,null,null,null,null,null,null,null,null,null,null,null,null,null,null,null,null,null,null,null,null,null,null,null,null,null,null,null,null,null,null,null,null,null,null,null,null,null,null,null,null,null,null,null,null,null,null,null,null,null,null,null,null,"2b.State",null,null,null,null,null,null,null,null,null,null,null,null,null,null,null,null,"2c. Zip Code",null,null,null,null,null,null,null,null,null,null,null,null,null,"2d. County"]
[]
[]
[]
[]
[]
[]
[]
[null,null,null,null,null,null,null,null,null,null,null,null,null,null,null,null,null,null,null,null,null,null,null,null,null,null,null,null,null,null,null,null,null,null,null,null,null,null,null,null,null,null,null,null,null,null,null,null,null,null,null,null,null,null,null,null,null,null,null,null,null,null,null,null,null,null,null,null,null,null,null,null,null,null,null,null," "]
[null,null,"3. CHDO Type",null,null,null,null,null,null,null,null,null,null,null,null,null,null,null,null,null,null,null,null,null,null,null,null,null,null,null,null,null,null,null,null,null,null,null,null,null,null,null,null,null,null,null,null,null,null,null,null,null,null,null,null,null,"4. CHDO Pre Const or TA Loan?",null,null,null,null,null,null,null,null,null,null,null,null,null,null,null,null,null,null,null,null,null,null,null,null,null,null,null,null,null,null,null,null,null,null,"5. Faith-Based Organization?"]
[]
[]
[null,null,null,null,null,null,null,"Owned",null,null,null,null,null,null,null,null,null,null,null,null,null,null,null,null,null,"Sponsored",null,null,null,null,null,null,null,null,null,null,null,null,null,null,null,null,null,"Developed",null,null,null,null,null,null,null,null,null,null,null,null,null,null,null,null,null,null,null,null,"Yes",null,null,null,null,null,null,null,null,null,null,null,null,null,"No",null,null,null,null,null,null,null,null,null,null,null,null,null,null,null,null,null,null,null,null,"Yes",null,null,null,null,null,null,null,null,null,null,null,null,null,null,"No"]
[]
[]
[]
[null,null,"6. Developer Type (Check one)",null,null,null,null,null,null,null,null,null,null,null,null,null,null,null,null,null,null,null,null,null,null,null,null,null,null,null,null,null,null,null,null,null,null,"7. Project Type (Select one category 1-5)",null,null,null,null,null,null,null,null,null,null,null,null,null,null,null,null,null,null,null,null,null,null,null,null,null,null,null,null,null,null,null,null,null,null,null,null,null,null,null,null,null,null,null,null,null,null,null,null,null,null,null,null,"8. Property Type (Check one)"]
[]
[null,null,null,null,null,null,null,null,null,null,null,null,null,null,null,null,null,null,null,null,null,null,null,null,null,null," "]
[null,null,null,null,null,"Individual",null,null,null,null,null,null,null,null,null,null,null,null,null,null,null,null,null,null,null,null,null,null,null,null,null,null,null,null,null,null,null,null,null,null,"New Construction Only",null,null,null,null,null,null,null,null,null,null,null,null,null,null,null,null,null,null,null,null,null,null,null,null,null,null,null,null,null,null,null,null,null,null,null,null,null,null,null,null,null,null,null,null,null,null,null,null,null,null,null,null,"1-4 Single Family"]
[]
[]
[null,null,null,null,null,"Partnership",null,null,null,null,null,null,null,null,null,null,null,null,null,null,null,null,null,null,null,null,null,null,null,null,null,null,null,null,null,null,null,null,null,null,"Rehabilitation Only",null,null,null,null,null,null,null,null,null,null,null,null,null,null,null,null,null,null,null,null,null,null,null,null,null,null,null,null,null,null,null,null,null,null,null,null,null,null,null,null,null,null,null,null,null,null,null,null,null,null,null,null,"Condominium"]
[]
[]
[null,null,null,null,null,"Corporation",null,null,null,null,null,null,null,null,null,null,null,null,null,null,null,null,null,null,null,null,null,null,null,null,null,null,null,null,null,null,null,null,null,null,"Acquisition & New Construction",null,null,null,null,null,null,null,null,null,null,null,null,null,null,null,null,null,null,null,null,null,null,null,null,null,null,null,null,null,null,null,null,null,null,null,null,null,null,null,null,null,null,null,null,null,null,null,null,null,null,null,null,"Cooperative"]
[]
[]
[null,null,null,null,null,"Not for profit",null,null,null,null,null,null,null,null,null,null,null,null,null,null,null,null,null,null,null,null,null,null,null,null,null,null,null,null,null,null,null,null,null,null,"Acquisition & Rehabilitation",null,null,null,null,null,null,null,null,null,null,null,null,null,null,null,null,null,null,null,null,null,null,null,null,null,null,null,null,null,null,null,null,null,null,null,null,null,null,null,null,null,null,null,null,null,null,null,null,null,null,null,null,"Manufactured Home"]
[]
[]
[null,null,null,null,null,"Publicly owned"]
[]
[]
[null,null,null,null,null,"Other"]
[]
[]
[]
[]
[]
[]
[]
[]
[]
[]
[]
[]
[]
[]
[]
[]
[null,null,"Part C: Performance Measurements"]
[]
[]
[]
[]
[]
[]
[null,null,null,null,null,null,null,null,null,null,null,null,null,null,null,null,null,null,null,null,null,null,null,null,null,null,null,null,null,null,null,null,null,null,null,null,null,null,null,null,null,null,"Total Units",null,null,null,null,null,null,null,null,null,null,null,null,null,null,null,null,null,null,null,null,null,null,null,null,null,null,null,null,null,null,null,null,null,null,null,null,null,null,null,null,null,"HOME-Assisted"]
[]
[]
[]
[null,null,"1. Completed Units"]
[]
[]
[]
[null,null,"Of The Units Completed",null,null,null,null,null,null,null,null,null,null,null,null,null,null,null,null,null,null,null,null,null,null,null,null,null,null,null,null,null,null,null,null,null,null,null,null,null,null,null,"Total Units",null,null,null,null,null,null,null,null,null,null,null,null,null,null,null,null,null,null,null,null,null,null,null,null,null,null,null,null,null,null,null,null,null,null,null,null,null,null,null,null,null,"HOME Units"]
[]
[]
[]
[null,null,"2. Meeting Energy Star Standard"]
[]
[]
[]
[null,null,"3. 504 Accesible"]
[]
[]
[]
[]
[]
[]
[]
[]
[]
[]
[]
[]
[]
[]
[]
[null,null,null,null,null,null,null,null,null,null,null,null,null,null,null,null,null,null,null,null,null,null,null,null,null,null,null,null,null,null,null,null,null,null,null,null,null,null,null,null,null,null,null,null,null,null,null,null,null,null,null,null,null,null,null,null,null,null,null,null,null,null,null,null,null,null,null,null,null,null,null,null,null,null,null,null,null,null,null,null,null,null,null,null,null,null,null,null,null,null,null,null,null,null,"Contract #",null,null,null,null,null,null,null,null,null,null,null,null,null,null,null,"-HOME-"]
[]
[]
[]
[]
[null,null,null,null,null,null,null,null,null,null,null,null,null,null,null,null,null,null,null,null,null,null,null,null,null,null,null,null,null,null,null,null,null,null,null,null,null,null,null,null,null,null,null,null,null,null,null,null,null,null,null,null,null,null,null,null,null,null,null,null,null,null,null,null,null,null,null,null,null,null,null,null,null,null,null,null,null,null,null,null,null,null,null,null,null,null,null,null,null,null,null,null,null,null,null,null,null,null,null,null,null,null,null,null,null,null,{"$f":"CX3","v":0},null,null,null,null,null,null,null,null,null,null,{"$f":"DI3","v":0},null,null,null,null,null,null,"PAGE 3"]
[]
[]
[null,"PROJECT FUNDING SOURCE DETAIL"]
[]
[null,"For submittal of initial construction financing and with each individual homeowner Project Set-Up/Completion Report and any subsequent revisions"]
[]
[]
[]
[]
[]
[null,"Part E Project Funding and Program Income"]
[]
[null,null,"1. State Recipients are required to identify, at least once per month, their undistributed balance of Program Income/Recaptured funds (\"Balance\"). Please provide the following information:"]
[]
[]
[null,null,null,"a) Date of Balance:",null,null,null,null,null,null,null,null,null,null,null,null,null,null,null,null,null,null,null,null,null,null,null,null,null,null,null,null,null,null,null,null,null,null,null,null,null,null,null,null,null,null,null,null,null,null,null,null,null,null,null,null,null,null,null,null,null,null,"b) Balance (If balance is Zero enter 0): ",null,null,null,null,null,null,null,null,null,null,null,null,null,null,null,null,null,null,null,null,null,null,null,null,null,null,null,null,null,null,null,null,null,null,null,null,null,null,0]
[]
[]
[null,null,"2. Of the Total Project Cost, provide the following breakdown according to funding source. Funding Source Codes and Descriptions are available on the Project Funding Source Detail Listing (HOME-3) form."]
[]
[]
[]
[]
[null,"Funding Source Detail"]
[]
[]
[]
[null,"Funding ",null,null,null,null,null,null,null,null,"Check",null,null,null,null,null,null,null,null,"Funding Source Description ",null,null,null,null,null,null,null,null,null,null,null,null,null,null,null,null,null,null,null,null,null,null,null,null,null,null,null,null,null,null,null,null,null,null,null,null,"Name of Source",null,null,null,null,null,null,null,null,null,null,null,null,null,null,null,null,null,null,null,null,null,null,null,null,null,null,null,null,"Amount(s)",null,null,null,null,null,null,null,null,null,null,null,null,null,null,null,null,null,"Amount(s)"]
[]
[null,"Source",null,null,null,null,null,null,null,null,"Here",null,null,null,null,null,null,null,null,"(Redevelopment Agency, State HCD,",null,null,null,null,null,null,null,null,null,null,null,null,null,null,null,null,null,null,null,null,null,null,null,null,null,null,null,null,null,null,null,null,null,null,null,null,"(Union Bank, County of",null,null,null,null,null,null,null,null,null,null,null,null,null,null,null,null,null,null,null,null,null,null,null,null,null,null,null,null,"Part of Project",null,null,null,null,null,null,null,null,null,null,null,null,null,null,null,null,null,"Not Part of"]
[]
[null,"Code",null,null,null,null,null,null,null,null,"If",null,null,null,null,null,null,null,null,"State Other, Federal, Tax Credit,",null,null,null,null,null,null,null,null,null,null,null,null,null,null,null,null,null,null,null,null,null,null,null,null,null,null,null,null,null,null,null,null,null,null,null,null,"Santa Cruz Redevelopment",null,null,null,null,null,null,null,null,null,null,null,null,null,null,null,null,null,null,null,null,null,null,null,null,null,null,null,null,"Total",null,null,null,null,null,null,null,null,null,null,null,null,null,null,null,null,null,"Project Total"]
[]
[null,null,null,null,null,null,null,null,null,null,"Match",null,null,null,null,null,null,null,null,"Private, Local or other (Specify) ",null,null,null,null,null,null,null,null,null,null,null,null,null,null,null,null,null,null,null,null,null,null,null,null,null,null,null,null,null,null,null,null,null,null,null,null,"Agency, Cal Home, etc.)",null,null,null,null,null,null,null,null,null,null,null,null,null,null,null,null,null,null,null,null,null,null,null,null,null,null,null,null,"(no Cents)"]
[]
[]
[]
[null,null,"01",null,null,null,null,null,null,null,null,null,null,null,null,null,null,null,null,null,"HOME Funds-"]
[]
[]
[]
[null,null,"11",null,null,null,null,null,null,null,null,null,null,null,null,null,null,null,null,null,"HOME Funds- Activity Delivery Costs"]
[]
[]
[]
[null,null,"02",null,null,null,null,null,null,null,null,null,null,null,null,null,null,null,null,null,"HOME Funds- Grants"]
[]
[]
[]
[null,null,"N/A",null,null,null,null,null,null,null,null,null,null,null,null,null,null,null,null,null,"Total HOME Funds",null,null,null,null,null,null,null,null,null,null,null,null,null,null,null,null,null,null,null,null,null,null,null,null,null,null,null,null,null,null,null,null,null,null,null,null,null,null,null,null,null,null,null,null,null,null,null,null,null,null,null,null,null,null,null,null,null,null,null,null,null,null,null,null,null,{"$f":"SUM(CI284,CI280,CI276)","v":0}]
[]
[]
[]
[null,null,"Y",null,null,null,null,null,null,null,null,null,null,null,null,null,null,null,null,null,"Local Program Income (PI)"]
[]
[]
[null,null,null,null,null," "]
[null,null,"Y",null,null,null,null,null,null,null,null,null,null,null,null,null,null,null,null,null,"Local PI - Activity Delivery Costs"]
[]
[]
[]
[null,null,"N/A",null,null,null,null,null,null,null,null,null,null,null,null,null,null,null,null,null,"Total Program Income",null,null,null,null,null,null,null,null,null,null,null,null,null,null,null,null,null,null,null,null,null,null,null,null,null,null,null,null,null,null,null,null,null,null,null,null," ",null,null,null,null,null,null,null,null,null,null,null,null,null,null,null,null,null,null,null,null,null,null,null,null,null,null,null,null,{"$f":"SUM(CI292,CI296)","v":0}]
[]
[]
[]
[null,null,"S",null,null,null,null,null,null,null,null,null,null,null,null,null,null,null,null,null,"Owner Contributions",null,null,null,null,null,null,null,null,null,null,null,null,null,null,null,null,null,null,null,null,null,null,null,null,null,null,null,null,null,null,null,null,null,null,null,null," ",null,null,null,null,null,null,null,null,null,null,null,null,null,null,null,null,null,null,null,null,null,null,null,null,null,null,null,null,null,null,null,null,null,null,null,null,null,null,null,null,null,null,null,null,null,null," "]
[]
[]
[]
[null,null,"R",null,null,null,null,null,null,null,null,null,null,null,null,null,null,null,null,null,"Private –Banks or mortgage companies",null,null,null,null,null,null,null,null,null,null,null,null,null,null,null,null,null,null,null,null,null,null,null,null,null,null,null,null,null,null,null,null,null,null,null,null," ",null,null,null,null,null,null,null,null,null,null,null,null,null,null,null,null,null,null,null,null,null,null,null,null,null,null,null,null,null,null,null,null,null,null,null,null,null,null,null,null,null,null,null,null,null,null," "]
[]
[]
[]
[null,null,null,null,null,null,null,null,null,null,null,null,null,null,null,null,null,null,null,null," ",null,null,null,null,null,null,null,null,null,null,null,null,null,null,null,null,null,null,null,null,null,null,null,null,null,null,null,null,null,null,null,null,null,null,null,null," ",null,null,null,null,null,null,null,null,null,null,null,null,null,null,null,null,null,null,null,null,null,null,null,null,null,null,null,null,null,null,null,null,null,null,null,null,null,null,null,null,null,null,null,null,null,null," "]
[]
[]
[]
[null,null,null,null,null,null,null,null,null,null,null,null,null,null,null,null,null,null,null,null," ",null,null,null,null,null,null,null,null,null,null,null,null,null,null,null,null,null,null,null,null,null,null,null,null,null,null,null,null,null,null,null,null,null,null,null,null," ",null,null,null,null,null,null,null,null,null,null,null,null,null,null,null,null,null,null,null,null,null,null,null,null,null,null,null,null,null,null,null,null,null,null,null,null,null,null,null,null,null,null,null,null,null,null," "]
[]
[]
[]
[null,null,null,null,null,null,null,null,null,null,null,null,null,null,null,null,null,null,null,null," ",null,null,null,null,null,null,null,null,null,null,null,null,null,null,null,null,null,null,null,null,null,null,null,null,null,null,null,null,null,null,null,null,null,null,null,null," ",null,null,null,null,null,null,null,null,null,null,null,null,null,null,null,null,null,null,null,null,null,null,null,null,null,null,null,null,null,null,null,null,null,null,null,null,null,null,null,null,null,null,null,null,null,null," "]
[]
[]
[]
[null,null,null,null,null,null,null,null,null,null,null,null,null,null,null,null,null,null,null,null," ",null,null,null,null,null,null,null,null,null,null,null,null,null,null,null,null,null,null,null,null,null,null,null,null,null,null,null,null,null,null,null,null,null,null,null,null," ",null,null,null,null,null,null,null,null,null,null,null,null,null,null,null,null,null,null,null,null,null,null,null,null,null,null,null,null,null,null,null,null,null,null,null,null,null,null,null,null,null,null,null,null,null,null," "]
[]
[]
[]
[null,null,null,null,null,null,null,null,null,null,null,null,null,null,null,null,null,null,null,null," ",null,null,null,null,null,null,null,null,null,null,null,null,null,null,null,null,null,null,null,null,null,null,null,null,null,null,null,null,null,null,null,null,null,null,null,null," ",null,null,null,null,null,null,null,null,null,null,null,null,null,null,null,null,null,null,null,null,null,null,null,null,null,null,null,null,null,null,null,null,null,null,null,null,null,null,null,null,null,null,null,null,null,null," "]
[]
[]
[]
[null,null,null,null,null,null,null,null,null,null,null,null,null,null,null,null,null,null,null,null," ",null,null,null,null,null,null,null,null,null,null,null,null,null,null,null,null,null,null,null,null,null,null,null,null,null,null,null,null,null,null,null,null,null,null,null,null," ",null,null,null,null,null,null,null,null,null,null,null,null,null,null,null,null,null,null,null,null,null,null,null,null,null,null,null,null,null,null,null,null,null,null,null,null,null,null,null,null,null,null,null,null,null,null," "]
[]
[]
[]
[null,null,null,null,null,null,null,null,null,null,null,null,null,null,null,null,null,null,null,null," ",null,null,null,null,null,null,null,null,null,null,null,null,null,null,null,null,null,null,null,null,null,null,null,null,null,null,null,null,null,null,null,null,null,null,null,null," ",null,null,null,null,null,null,null,null,null,null,null,null,null,null,null,null,null,null,null,null,null,null,null,null,null,null,null,null,null,null,null,null,null,null,null,null,null,null,null,null,null,null,null,null,null,null," "]
[]
[]
[]
[null,null,null,null,null,null,null,null,null,null,null,null,null,null,null,null,null,null,null,null," ",null,null,null,null,null,null,null,null,null,null,null,null,null,null,null,null,null,null,null,null,null,null,null,null,null,null,null,null,null,null,null,null,null,null,null,null," ",null,null,null,null,null,null,null,null,null,null,null,null,null,null,null,null,null,null,null,null,null,null,null,null,null,null,null,null,null,null,null,null,null,null,null,null,null,null,null,null,null,null,null,null,null,null," "]
[]
[null,null,null,null,null,null,null,null,null,null,null,null,null,null,null,null,null,null,null,null,null,null,null,null,null,null,null,null,null,null,null,null,null,null,null,null,null,null,null,null,null,null,null,null,null,null,null,null,null,null,null,null,null,null,null,null,null,null,null,null,null,null,null,null,null,null,null,null,null,null,null,null,null,null,null,null,null,null,null,null,null," "]
[]
[]
[null,null,null,"Total Project Costs",null,null,null,null,null,null,null,null,null,null,null,null,null,null,null,null,null,null,null,null,null,null,null,null,null,null,null,null,null,null,null,null,null,null,null,null,null,null,null,null,null,null,null,null,null,null,null,null,null,null,null,null,null,null,null,null,null,null,null,null,null,null,null,null,null,null,null,null,null,null,null,null,null,null,null,null,null,null,null,null,null,null,{"$f":"SUM(CI288,CI300,CI304,CI308,CI312,CI316,CI320,CI324,CI328,CI332,CI336,CI340,)","v":0},null,null,null,null,null,null,null,null,null,null,null,null,null,null,null,null,null,{"$f":"SUM(DA340,DA336,DA332,DA328,DA324,DA320,DA316,DA312,DA308,DA304,)","v":0}]
[]
[]
[]
[]
[]
[]
[]
[]
[]
[]
[null,null,null,null,null,null,null,null,null,null,null,null,null,null,null,null,null,null,null,null,null,null,null,null,null,null,null,null,null,null,null,null,null,null,null,null,null,null,null,null,null,null,null,null,null,null,null,null,null,null,null,null,null,null,null,null,null,null,null,null,null,null,null,null,null,null,null,null,null,null,null,null,null,null,null,null,null,null,null,null,null,null,null,null,null,null,null,null,null,null,null,null,null,null,null,null,null,null,null,null,null,null,null,null,null,null,null,null,null,null,null,null,null,null,null,null,null,null,null,null,null,null,null,null,"PAGE 4"]
[null,null,null,null,null,null,null,null,null,null,null,null,null,null,null,null,null,null,null,null,null,null,null,null,null,null,null,null,null,null,null,null,null,null,null,null,null,null,null,null,null,null,null,null,null,null,null,null,null,null,null,null,null,null,null,null,null,null,null,null,null,null,null,null,null,null,null,null,null,null,null,null,null,null,null,null,null,null,null,null,null,null,null,null,null,null,null,null,null,null,null,null,null,null,"Contract #",null,null,null,null,null,null,null,null,null,null,null,{"$f":"CX3","v":0},null,null,null,"-HOME-",null,null,null,null,null,null,{"$f":"DI3","v":0}]
[]
[]
[null,"Part F: Financial Structure of Project"]
[]
[null,"Section 1: Home Value/limits"]
[null,null,null,null,null,null,null,null,null,null,null,null,null,null,null,null,null,null,null,null,null,null,null,null,null,null,null,null,null,null,null,null,null,null,null,null,null,null,null,null,null,null,null,null,null,null,null,null,null,null,null,null,null,null,null,null,null,null,null,null,null,null,null,null,null,null,null,null,null,null,null,null,null,null,null,null,null,null,null,null,null,null,null,null,null,null,null,null,null,null,null,null,null,null,null,null,null,null,null,null,null,null,null,null,null,null,null,null,null,null,null,null,null,null,null,null,null,null,null,null,null,null,null,null,null,null,null,"http://www.hcd.ca.gov/fa/home/manual/01/HOME3_Funding_Source_Codes.doc"]
[]
[null,null,"Maximum Purchase Price/After-Rehabilitation Value Limit "]
[null,null,null,null,null,null,null,null,null,null,null,null,null,null,null,null,null,null,null,null,null,null,null,null,null,null,null,null,null,null,null,null,null,null,null,null,null,null,null,null,null,null,null,null,null,null,null,null,null,null,null,null,null,null,null,null,null,null,null,null,null,null,null,null,null,null,null,null,null,null,null,null,null,null,null,null,null,null,null,null,null,null,null,null,null,null,null,null,null,null,null,null,null,null,null,null,null,null,null,null,null,null,null,null,null,null,null,null,null,null,null,null,null,null,null,null,null,null,null,null,null,null,null,null,null,null,null,"http://www.hcd.ca.gov/fa/home/homelimits.html"]
[]
[null," Actual Value of House After Rehabilitation"]
[]
[]
[]
[]
[]
[null,null,"Purchase Price"]
[]
[]
[]
[null,"Section 2: Project Financing"]
[]
[null,null,"1. HOME FUNDS Only",null,null,null,null,null,null,null,null,null,null,null,null,null,null,null,null,null,null,null,null,null,null,null,null,null,null,null,null,null,null,"1. Deferred Payment Loan",null,null,null,null,null,null,null,null,null,null,null,null,null,null,null,null,null,null,null,null,null,null,null,null,null,null,null,null,null,"Annual Interest Rate",null,null,null,null,null,null,null,null,null,null,null,null,null,null,null,null,null,null,null,null,null,null,null,null,"Loan Period",null,null,null,null,null,null,null,null,null,null,null,null,null,null,null,null,null,null,null,{"$f":"IF(DT77=3, CI276, \"\")","v":0}]
[]
[null,null,null,null,null,null,null,null,null,null,null,null,null,null,null,null,null,null,null,null,null,null,null,null,null,null,null,null,null,null,null,null,null,null,null,null,null,null,null,null,null,null,null,null,null,null,null,null,null,null,null,null,null,null,null,null,null,null,null,null,null,null,null,null,null,null,null,null,null,null,null,null,null,null,null,null,null,null,null,"%",null,null,null,null,null,null,null,null,null,null,null,null,null,null,null,null,"Years"]
[]
[null,null,null,null,null,null,null,null,null,null,null,null,null,null,null,null,null,null,null,null,null,null,null,null,null,null,null,null,null,null,null,null,null,null,null,null,null,null,null,null,null,null,null,null,null,null,null,null,null,null,null,null,null,null,null,null,null,null,null,null,null,null,null,null,null,null,null,null,null,null,null,null,null,null,null,null,null,null,null,null,null,null,null,null,null,null,null,null,null,null,null,null,null,null,null,null,null,null,null,null,null,null,null,null,null,null,null,null,{"$f":"CI284","v":0}]
[null,null,null,null,null,null,null,null,null,null,null,null,null,null,null,null,null,null,null,null,null,null,null,null,null,null,null,null,null,null,null,null,null,"2. Grant (Type:",null,null,null,null,null,null,null,null,null,null,null,null,null,null,null,null,null,null,null,null,null,null,null,null,null,null,null,null,null,null,null,null,null,null,null,null,null,null,null,null,null,null,null,null,null,null,null,null,null,null,null,null,null,null,null,null,null,null,null,null,null,null,null,null,null,null,null,null,null,null,null,")"]
[]
[]
[null,null,null,null,null,null,null,null,null,null,null,null,null,null,null,null,null,null,null,null,null,null,null,null,null,null,null,null,null,null,null,null,null,null,null,null,null,null,null,null,null,null,null,null,null,null,null,null,null,null,null,null,null,null,null,null,null,null,null,null,null,null,null,null,null,null,null,null,null,null,null,null,null,null,null,null,null,null,null,null,null,null,null,null,null,null,null,null,null,null,null,null,null,null,null,null,null,null,null,null,null,null,null,null,null,null,null,null,{"$f":"CI280","v":0}]
[null,null,null,null,null,null,null,null,null,null,null,null,null,null,null,null,null,null,null,null,null,null,null,null,null,null,null,null,null,null,null,null,null,"3. Other/Activity Delivery Costs"]
[]
[]
[null,null,null,null,null,null,null,null,null,null,null,null,null,null,null,null,null,null,null,null,null,null,null,null,null,null,null,null,null,null,null,null,null,null,null,null,null,null,null,null,null,null,null,null,null,null,null,null,null,null,null,null,null,null,null,null,null,null,null,null,null,null,null,null,null,null,null,null,null,null,null,null,null,null,null,null,null,null,null,null,null,null,null,null,null,null,null,null,null,null,null,null,null,null,null,null,null,null,null,null,null,null,null,null,null,null,null,null,{"$f":"SUM(DE380,DE384,DE388,)","v":0}]
[null,null,null,null,null,null,null,null,null,null,null,null,null,null,null,null,null,null,null,null,null,null,null,null,null,null,null,null,null,null,null,null,null,"4. Total State HOME Funds"]
[]
[null,null,"1B. Other HOME Funds",null,null,null,null,null,null,null,null,null,null,null,null,null,null,null,null,null,null,null,null,null,null,null,null,null,null,null,null,null,null,null,null,null,null,null,null,null,null,null,null,null,null,null,null,null,null,null,null,null,null,null,null,null,null,null,null,null,null,null,null,null,null,null,null,null,null,null,null,null,null,null,null,null,null,null,null,null,null,null,null,null,null,null,null,null,null,null,null,null,null,null,null,null,null,null,null,null,null,null,null,null,null,null,null,null,{"$f":"CI292","v":0}]
[null,null,null,null,null,null,null,null,null,null,null,null,null,null,null,null,null,null,null,null,null,null,null,null,null,null,null,null,null,null,null,null,null,"1. Local Program Income"]
[]
[]
[null,null,null,null,null,null,null,null,null,null,null,null,null,null,null,null,null,null,null,null,null,null,null,null,null,null,null,null,null,null,null,null,null,null,null,null,null,null,null,null,null,null,null,null,null,null,null,null,null,null,null,null,null,null,null,null,null,null,null,null,null,null,null,null,null,null,null,null,null,null,null,null,null,null,null,null,null,null,null,null,null,null,null,null,null,null,null,null,null,null,null,null,null,null,null,null,null,null,null,null,null,null,null,null,null,null,null,null,{"$f":"CI296","v":0}]
[null,null,null,null,null,null,null,null,null,null,null,null,null,null,null,null,null,null,null,null,null,null,null,null,null,null,null,null,null,null,null,null,null,"2. Program Income Activity Delivery Costs",null,null,null,null,null,null,null,null,null,null,null,null,null,null,null,null,null,null,null,null,null,null,null,null,null,null,null,null,null,null,null,null,null,null,null,null,null,null,null,null,null,null,null,null,null,null,null,null,null,null,null,null,null,null,null,null,null,null,null,null,null,null,null,null,null,null,null,null,null,null,null," "]
[]
[]
[null,null,null,null,null,null,null,null,null,null,null,null,null,null,null,null,null,null,null,null,null,null,null,null,null,null,null,null,null,null,null,null,null,null,null,null,null,null,null,null,null,null,null,null,null,null,null,null,null,null,null,null,null,null,null,null,null,null,null,null,null,null,null,null,null,null,null,null,null,null,null,null,null,null,null,null,null,null,null,null,null,null,null,null,null,null,null,null,null,null,null,null,null,null,null,null,null,null,null,null,null,null,null,null,null,null,null,null,{"$f":"SUM(DE395,DE399)","v":0}]
[null,null,null,null,null,null,null,null,null,null,null,null,null,null,null,null,null,null,null,null,null,null,null,null,null,null,null,null,null,null,null,null,null,"3. Total Program Income HOME Funds"]
[null,null,null,null,null,null,null,null,null,null,null,null,null,null,null,null,null,null,null,null,null,null,null,null,null,null,null,null,null,null,null,null,null,null,null,null,null,null,null,null,null,null,null,null,null,null,null,null,null,null,null,null,null,null,null,null,null,null,null,null,null,null,null,null,null,null,null,null,null,null,null,null,null,null,null," "]
[null,null,"1C. Summary Funds",null,null,null,null,null,null,null,null,null,null,null,null,null,null,null,null,null,null,null,null,null,null,null,null,null,null,null,null,null,null,null,null,null,null,null,null,null,null,null,null,null,null,null,null,null,null,null,null,null,null,null,null,null,null,null,null,null,null,null,null,null,null,null,null,null,null,null,null,null,null,null,null,null,null,null,null,null,null,null,null,null,null,null,null,null,null,null,null,null,null,null,null,null,null,null,null,null,null,null,null,null,null,null,null,null,{"$f":"SUM(DE403,DE392)","v":0}]
[null,null,null,null,null,null,null,null,null,null,null,null,null,null,null,null,null,null,null,null,null,null,null,null,null,null,null,null,null,null,null,null,null,"1. Total HOME Funds"]
[]
[]
[null,null,null,null,null,null,null,null,null,null,null,null,null,null,null,null,null,null,null,null,null,null,null,null,null,null,null,null,null,null,null,null,null,null,null,null,null,null,null,null,null,null,null,null,null,null,null,null,null,null,null,null,null,null,null,null,null,null,null,null,null,null,null,null,null,null,null,null,null,null,null,null,null,null,null,null,null,null,null,null,null,null,null,null,null,null,null,null,null,null,null,null,null,null,null,null,null,null,null,null,null,null,null,null,null,null,null,null,{"$f":"SUM(DE380,DE395)","v":0}]
[null,null,null,null,null,null,null,null,null,null,null,null,null,null,null,null,null,null,null,null,null,null,null,null,null,null,null,null,null,null,null,null,null,"2. HOME Promisory Note"]
[]
[]
[null,null,null,null,null,null,null,null,null,null,null,null,null,null,null,null,null,null,null,null,null,null,null,null,null,null,null,null,null,null,null,null,null,"3. Primary Loan (FTHB)",null,null,null,null,null,null,null,null,null,null,null,null,null,null,null,null,null,null,null,null,null,null,null,null,null,null,null,null,null,"Annual Interest Rate",null,null,null,null,null,null,null,null,null,null,null,null,null,null,null,null,null,null,null,null,null,null,null,"Amortization Period",null,null,null,null,null,null,null,null,null,null,null,null,null,null,null,null,null,null,null,null,null,null,null,null,null,null,null,null,null,null,null,null,null,null,null,2]
[null,null,null,null,null,null,null,null,null,null,null,null,null,null,null,null,null,null,null,null,null,null,null,null,null,null,null,null,null,null,null,null,null,null,null,null,null,null,null,null,null,null,null,null,null,null,null,null,null,null,null,null,null,null,null,null,null,null,null,null,null,null,null,null,null,null,null,null,null,null,null,null,null,null,null,null,null,null,null,null,null,null,null,null,null,null,null,null,null,null,null,null,null,null,null,null,null,null,null,null,null,null,null,null,null,null,null,null,null,null,null,null,null,null,null,null,null,null,null,null,null,null,null,3]
[null,null,null,null,null,null,null,null,null,null,null,null,null,null,null,null,null,null,null,null,null,null,null,null,null,null,null,null,null,null,null,null,null,null,null,null,null,null,null,null,null,null,null,null,null,null,null,null,null,null,null,null,null,null,null,null,null,null,null,null,null,null,null,null,null,null,null,null,null,null,null,null,null,null,null,null,null,null,null,"%",null,null,null,null,null,null,null,null,null,null,null,null,null,null,null,null,"Years",null,null,null,null,null,null,null,null,null,null,null,null,null,null,null,null,null,null,null,null,null,null,null,null,null,null,4]
[null,null,null,null,null,null,null,null,null,null,null,null,null,null,null,null,null,null,null,null,null,null,null,null,null,null,null,null,null,null,null,null,null,null,null,null,null,null,null,null,null,null,null,null,null,null,null,null,null,null,null,null,null,null,null,null,null,null,null,null,null,null,null,null,null,null,null,null,null,null,null,null,null,null,null,null,null,null,null,null,null,null,null,null,null,null,null,null,null,null,null,null,null,null,null,null,null,null,null,null,null,null,null,null,null,null,null,null,null,null,null,null,null,null,null,null,null,null,null,null,null,null,null,5]
[null,null,"2. Public Funds",null,null,null,null,null,null,null,null,null,null,null,null,null,null,null,null,null,null,null,null,null,null,null,null,null,null,null,null,null,null,null,null,null,null,null,null,null,null,null,null,null,null,null,null,null,null,null,null,null,null,null,null,null,null,null,null,null,null,null,null,null,null,null,null,null,null,null,null,null,null,null,null,null,null,null,null,null,null,null,null,null,null,null,null,null,null,null,null,null,null,null,null,null,null,null,null,null,null,null,null,null,null,null,null,null,null,null,null,null,null,null,null,null,null,null,null,null,null,null,null,6]
[null,null,null,null,null,null,null,null,null,null,null,null,null,null,null,null,null,null,null,null,null,null,null,null,null,null,null,null,null,null,null,null,null,"1. Other Federal Funds"]
[]
[]
[null,null,null,null,null,null,null,null,null,null,null,null,null,null,null,null,null,null,null,null,null,null,null,null,null,null,null,null,null,null,null,null,null,null,null,null,null,null,null,null,null,null,null,null,null,null,null,null,null,null,null,null,null,null,null,null,null,null,null,null,null,null,null,null,null,null,null,null,null,null,null,null,null,null,null,null,null,null,null,null,null,null,null,null,null,null,null,null,null,null,null,null,null,null,null,null,null,null,null,null,null,null,null,2]
[null,null,null,null,null,null,null,null,null,null,null,null,null,null,null,null,null,null,null,null,null,null,null,null,null,null,null,null,null,null,null,null,null,"2. State/Local Appropriated Funds"]
[]
[]
[]
[null,null,null,null,null,null,null,null,null,null,null,null,null,null,null,null,null,null,null,null,null,null,null,null,null,null,null,null,null,null,null,null,null,"3. State/Local Tax-Exempt Bond Proceeds"]
[]
[]
[null,null,null,null,null,null,null,null,null,null,null,null,null,null,null,null,null,null,null,null,null,null,null,null,null,null,null,null,null,null,null,null,null,"4. Total Public Funds",null,null,null,null,null,null,null,null,null,null,null,null,null,null,null,null,null,null,null,null,null,null,null,null,null,null,null,null,null,null,null,null,null,null,null,null,null,null,null,null,null,null,null,null,null,null,null,null,null,null,null,null,null,null,null,null,null,null,null,null,null,null,null,null,null,null,null,null,null,null,null,null,null,null,{"$f":"SUM(CQ419,CQ423,CQ427)","v":0}]
[]
[]
[null,null,"3. Private Funds"]
[null,null,null,null,null,null,null,null,null,null,null,null,null,null,null,null,null,null,null,null,null,null,null,null,null,null,null,null,null,null,null,null,null,"1. Private Loan Funds",null,null,null,null,null,null,null,null,null,null,null,null,null,null,null,null,null,null,null,null,null,null,null,null,null,null,null,null,null,null,null,null,null,null,null,null,null,null,null,null,null,null,null,null,null,null,null,null,null,null,null,null,null,null,null,null,null,null,null,null,{"$f":"DE414","v":0}]
[]
[]
[]
[null,null,null,null,null,null,null,null,null,null,null,null,null,null,null,null,null,null,null,null,null,null,null,null,null,null,null,null,null,null,null,null,null,"2. Owner Cash Contribution"]
[]
[]
[]
[null,null,null,null,null,null,null,null,null,null,null,null,null,null,null,null,null,null,null,null,null,null,null,null,null,null,null,null,null,null,null,null,null,"3. Private Grants"]
[]
[]
[null,null,null,null,null,null,null,null,null,null,null,null,null,null,null,null,null,null,null,null,null,null,null,null,null,null,null,null,null,null,null,null,null,null,null,null,null,null,null,null,null,null,null,null,null,null,null,null,null,null,null,null,null,null,null,null,null,null,null,null,null,null,null,null,null,null,null,null,null,null,null,null,null,null,null,null,null,null,null,null,null,null,null,null,null,null,null,null,null,null,null,null,null,null,null,null,null,null,null,null,null,null,null,null,null,null,null,null,{"$f":"SUM(CQ434,CQ438,CQ442)","v":0}]
[null,null,null,null,null,null,null,null,null,null,null,null,null,null,null,null,null,null,null,null,null,null,null,null,null,null,null,null,null,null,null,null,null,"4. Total Private Funds"]
[]
[]
[null,null,null,null,null,null,null,null,null,null,null,null,null,null,null,null,null,null,null,null,null,null,null,null,null,null,null,null,null,null,null,null,null,null,null,null,null,null,null,null,null,null,null,null,null,null,null,null,null,null,null,null,null,null,null,null,null,null,null,null,null,null,null,null,null,null,null,null,null,null,null,null,null,null,null,null,null,null,null,null,null,null,null,null,null,null,null,null,null,null,null,null,null,null,null,null,null,null,null,null,null,null,null,null,null,null,null,null,{"$f":"SUM(DE392,DE403,DE430,DE445,)","v":0}]
[null,null,"Total Project Costs"]
[]
[]
[]
[]
[]
[]
[]
[]
[]
[]
[]
[]
[]
[]
[]
[]
[]
[]
[]
[]
[]
[]
[]
[]
[null,null,null,null,null,null,null,null,null,null,null,null,null,null,null,null,null,null,null,null,null,null,null,null,null,null,null,null,null,null,null,null,null,null,null,null,null,null,null,null,null,null,null,null,null,null,null,null,null,null,null,null,null,null,null,null,null,null,null,null,null,null,null,null,null,null,null,null,null,null,null,null,null,null,null,null,null,null,null,null,null,null,null,null,null,null,null,null,null,null,null,null,null,null,null,null,null,null,null,null,null,null,null,null,null,null,null,null,null,null,null,null,null,null,null,null,null,null,null,null,null,null,null,null,"PAGE 5"]
[null,null,null,null,null,null,null,null,null,null,null,null,null,null,null,null,null,null,null,null,null,null,null,null,null,null,null,null,null,null,null,null,null,null,null,null,null,null,null,null,null,null,null,null,null,null,null,null,null,null,null,null,null,null,null,null,null,null,null,null,null,null,null,null,null,null,null,null,null,null,null,null,null,null,null,null,null,null,null,null,null,null,null,null,null,null,null,null,null,null,null,null,null,null,"Contract #",null,null,null,null,null,null,null,null,null,null,null,{"$f":"CX3","v":0},null,null,null,"-HOME-",null,null,null,null,null,null,{"$f":"DI3","v":0}]
[]
[]
[]
[null,"Part D: Household Characteristics.  ",null,null,null,null,null,null,null,null,null,null,null,null,null,null,null,null,null,null,null,null,null,null,null,null,null,null,null,null,null,null,null,null,null,null,null,null,null,null,null,"Complete one line for each unit to be assisted with HOME funds.  Enter one code only in each block.  Refer to code below where applicable"]
[]
[]
[null,"(1)       Number of Bedrooms",null,null,null,null,null,null,null,null,"(2) Occupancy",null,null,null,null,null,null,null,null,"Income Data",null,null,null,null,null,null,null,null,null,null,null,null,null,null,null,null,null,"Household Data",null,null,null,null,null,null,null,null,null,null,null,null,null,null,null,null,null,null,null,null,null,null,null,null,null,null,null,null,null,null,null,null,null,null,null,null,null,null,null,null,null,null,null,null,"Loan Data"]
[]
[null,null,null,null,null,null,null,null,null,null,null,null,null,null,null,null,null,null,null,"(3)     Monthly Gross Income (Enter Actual Amount)",null,null,null,null,null,null,null,null,"(4)                  % of Area Median Code",null,null,null,null,null,null,null,null,"Head of Household",null,null,null,null,null,null,null,null,null,null,null,null,null,null,null,null,null,"(7)       Size of Household",null,null,null,null,null,null,null,null,"(8)       Type of Household",null,null,null,null,null,null,null,null,"(9) Assistance Type",null,null,null,null,null,null,null,null,"(10)       FHA Insured              (yes/no)",null,null,null,null,null,null,null,null,null,"(11)    Period of Affordability",null,null,null,null,null,null,null,null,null,"(12)            First-Time Home-Buyer coming from subsidized Housing                               (yes/no)",null,null,null,null,null,null,null,null,null,"(13)     Counseling Provided"]
[]
[null,null,null,null,null,null,null,null,null,null,null,null,null,null,null,null,null,null,null,null,null,null,null,null,null,null,null,null,null,null,null,null,null,null,null,null,null,"(5)       Hispanic",null,null,null,null,null,null,null,null,"(6)      Race"]
[]
[]
[]
[]
[]
[]
[]
[]
[]
[]
[]
[]
[]
[]
[]
[]
[]
[]
[]
[]
[]
[]
[]
[]
[]
[]
[]
[]
[]
[]
[]
[]
[]
[]
[]
[]
[]
[]
[]
[]
[]
[]
[]
[]
[]
[]
[]
[]
[]
[]
[]
[]
[]
[]
[]
[]
[]
[]
[]
[]
[]
[]
[]
[]
[null,null,"(1)",null,null,null,null,null,null,null,null,null,null,null,null,null,null,null,null,null,null,null,null,null,null,null,null,null,null,null,null,null,null,null,null,null,null,null,null,null,null,null,null,null,null,null,null,null,null,null,null,null,null,null,null,null,null,null,null,null,null,null,null,null,null,null,null,null,null,null,null,null,null,null,null,null,null,null,null,null,"(7)",null,null,null,null,null,null,null,null,null,null,null,null,null,null,null,null,null,null,null,null,null,"(9)"]
[null,null,null,null,null,null,null,null,null,null,null,null,null,null,null,null,null,null,null,null,null,null,"(4)",null,null,null,null,null,null,null,null,null,null,null,null,null,null,null,null,null,null,null,"(6)"]
[null,null,"Occupancy",null,null,null,null,null,null,null,null,null,null,null,null,null,null,null,null,null,null,null,null,null,null,null,null,null,null,null,null,null,null,null,null,null,null,null,null,null,null,null,null,null,null,null,null,null,null,null,null,null,null,null,null,null,null,null,null,null,null,null,null,null,null,null,null,null,null,null,null,null,null,null,null,null,null,null,null,null,"Household Size",null,null,null,null,null,null,null,null,null,null,null,null,null,null,null,null,null,null,null,null,null,"Assistance Type"]
[null,null,null,null,null,null,null,null,null,null,null,null,null,null,null,null,null,null,null,null,null,null,"% of Area Median",null,null,null,null,null,null,null,null,null,null,null,null,null,null,null,null,null,null,null,"Household Race"]
[null,null,null,null,null,null,null,null,null,null,null,null,null,null,null,null,null,null,null,null,null,null,null,null,null,null,null,null,null,null,null,null,null,null,null,null,null,null,null,null,null,null,null,null,null,null,null,null,null,null,null,null,null,null,null,null,null,null,null,null,null,null,null,null,null,null,null,null,null,null,null,null,null,null,null,null,null,null,null,null,null,null,null,null,null,null,null,null,null,null,null,null,null,null,null,null,null,null,null,null,null,null,null,"1 - Section 8"]
[null,null,"0 - 0 Bedrooms",null,null,null,null,null,null,null,null,null,null,null,null,null,null,null,null,null,null,null,null,null,null,null,null,null,null,null,null,null,null,null,null,null,null,null,null,null,null,null,null,null,null,null,null,null,null,null,null,null,null,null,null,null,null,null,null,null,null,null,null,null,null,null,null,null,null,null,null,null,null,null,null,null,null,null,null,null,null,"1 - 1 Person"]
[null,null,null,null,null,null,null,null,null,null,null,null,null,null,null,null,null,null,null,null,null,null,null,"1 - 0-30%",null,null,null,null,null,null,null,null,null,null,null,null,null,null,null,null,null,null,null,"09 - Vacant Unit",null,null,null,null,null,null,null,null,null,null,null,null,null,null,null,null,null,null,null,null,null,null,null,null,null,null,null,null,null,null,null,null,null,null,null,null,null,null,null,null,null,null,null,null,null,null,null,null,null,null,null,null,null,null,null,null,null,null,null,"3 - OTHER"]
[null,null,null,null,null,null,null,null,null,null,null,null,null,null,null,null,null,null,null,null,null,null,null,null,null,null,null,null,null,null,null,null,null,null,null,null,null,null,null,null,null,null,null,null,null,null,null,null,null,null,null,null,null,null,null,null,null,null,null,null,null,null,null,null,null,null,null,null,null,null,null,null,null,null,null,null,null,null,null,null,null,"2 - 2 Persons"]
[null,null,"1 - 1 Bedroom",null,null,null,null,null,null,null,null,null,null,null,null,null,null,null,null,null,null,null,null,null,null,null,null,null,null,null,null,null,null,null,null,null,null,null,null,null,null,null,null,"10 - Managers Unit",null,null,null,null,null,null,null,null,null,null,null,null,null,null,null,null,null,null,null,null,null,null,null,null,null,null,null,null,null,null,null,null,null,null,null,null,null,null,null,null,null,null,null,null,null,null,null,null,null,null,null,null,null,null,null,null,null,null,null,"4 - None"]
[null,null,null,null,null,null,null,null,null,null,null,null,null,null,null,null,null,null,null,null,null,null,null,"2 - 30-50%",null,null,null,null,null,null,null,null,null,null,null,null,null,null,null,null,null,null,null,null,null,null,null,null,null,null,null,null,null,null,null,null,null,null,null,null,null,null,null,null,null,null,null,null,null,null,null,null,null,null,null,null,null,null,null,null,null,"3 - 3 Persons"]
[null,null,null,null,null,null,null,null,null,null,null,null,null,null,null,null,null,null,null,null,null,null,null,null,null,null,null,null,null,null,null,null,null,null,null,null,null,null,null,null,null,null,null,"11 - White",null,null,null,null,null,null,null,null,null,null,null,null,null,null,null,null,null,null,null,null,null,null,null,null,null,null,null,null,null,null,null,null,null,null,null,null,null,null,null,null,null,null,null,null,null,null,null,null,null,null,null,null,null,null,null,null,null,null,"(11)"]
[null,null,"2 - 2 Bedrooms",null,null,null,null,null,null,null,null,null,null,null,null,null,null,null,null,null,null,null,null,null,null,null,null,null,null,null,null,null,null,null,null,null,null,null,null,null,null,null,null,null,null,null,null,null,null,null,null,null,null,null,null,null,null,null,null,null,null,null,null,null,null,null,null,null,null,null,null,null,null,null,null,null,null,null,null,null,null,"4 - 4 Persons"]
[null,null,null,null,null,null,null,null,null,null,null,null,null,null,null,null,null,null,null,null,null,null,null,"3 - 50-60%",null,null,null,null,null,null,null,null,null,null,null,null,null,null,null,null,null,null,null,"12 - Black/African American",null,null,null,null,null,null,null,null,null,null,null,null,null,null,null,null,null,null,null,null,null,null,null,null,null,null,null,null,null,null,null,null,null,null,null,null,null,null,null,null,null,null,null,null,null,null,null,null,null,null,null,null,null,null,null,null,null,null,"Period of Affordability"]
[null,null,null,null,null,null,null,null,null,null,null,null,null,null,null,null,null,null,null,null,null,null,null,null,null,null,null,null,null,null,null,null,null,null,null,null,null,null,null,null,null,null,null,null,null,null,null,null,null,null,null,null,null,null,null,null,null,null,null,null,null,null,null,null,null,null,null,null,null,null,null,null,null,null,null,null,null,null,null,null,null,"5 - 5 Persons"]
[null,null,"3 - 3 Bedrooms",null,null,null,null,null,null,null,null,null,null,null,null,null,null,null,null,null,null,null,null,null,null,null,null,null,null,null,null,null,null,null,null,null,null,null,null,null,null,null,null,"13 - Asian"]
[null,null,null,null,null,null,null,null,null,null,null,null,null,null,null,null,null,null,null,null,null,null,null,"4 - 60-80%",null,null,null,null,null,null,null,null,null,null,null,null,null,null,null,null,null,null,null,null,null,null,null,null,null,null,null,null,null,null,null,null,null,null,null,null,null,null,null,null,null,null,null,null,null,null,null,null,null,null,null,null,null,null,null,null,null,"6 - 6 Persons",null,null,null,null,null,null,null,null,null,null,null,null,null,null,null,null,null,null,null,null,"1 - 5 Years"]
[null,null,null,null,null,null,null,null,null,null,null,null,null,null,null,null,null,null,null,null,null,null,null,null,null,null,null,null,null,null,null,null,null,null,null,null,null,null,null,null,null,null,null,"14 - American Indian/Alaskan Native"]
[null,null,"4 - 4 Bedrooms",null,null,null,null,null,null,null,null,null,null,null,null,null,null,null,null,null,null,null,null,null,null,null,null,null,null,null,null,null,null,null,null,null,null,null,null,null,null,null,null,null,null,null,null,null,null,null,null,null,null,null,null,null,null,null,null,null,null,null,null,null,null,null,null,null,null,null,null,null,null,null,null,null,null,null,null,null,null,"7 - 7 Persons",null,null,null,null,null,null,null,null,null,null,null,null,null,null,null,null,null,null,null,null,"2 - 10 Years"]
[null,null,null,null,null,null,null,null,null,null,null,null,null,null,null,null,null,null,null,null,null,null,null,"9 - Vacant",null,null,null,null,null,null,null,null,null,null,null,null,null,null,null,null,null,null,null,"15 - Native Hawaiian/Other Pacific Islander"]
[null,null,null,null,null,null,null,null,null,null,null,null,null,null,null,null,null,null,null,null,null,null,null,null,null,null,null,null,null,null,null,null,null,null,null,null,null,null,null,null,null,null,null,null,null,null,null,null,null,null,null,null,null,null,null,null,null,null,null,null,null,null,null,null,null,null,null,null,null,null,null,null,null,null,null,null,null,null,null,null,null,"8 - 8 Persons",null,null,null,null,null,null,null,null,null,null,null,null,null,null,null,null,null,null,null,null,"3 - 15 Years"]
[null,null,"5 - 5 or more Bedrooms",null,null,null,null,null,null,null,null,null,null,null,null,null,null,null,null,null,null,null,null,null,null,null,null,null,null,null,null,null,null,null,null,null,null,null,null,null,null,null,null,"16 - American Indian/Alaskan Native & White"]
[null,null,null,null,null,null,null,null,null,null,null,null,null,null,null,null,null,null,null,null,null,null,null,null,null,null,null,null,null,null,null,null,null,null,null,null,null,null,null,null,null,null,null,null,null,null,null,null,null,null,null,null,null,null,null,null,null,null,null,null,null,null,null,null,null,null,null,null,null,null,null,null,null,null,null,null,null,null,null,null,null,"9 - Vacant",null,null,null,null,null,null,null,null,null,null,null,null,null,null,null,null,null,null,null,null,"4 - Other"]
[null,null,null,null,null,null,null,null,null,null,null,null,null,null,null,null,null,null,null,null,null,null,null,"(5)",null,null,null,null,null,null,null,null,null,null,null,null,null,null,null,null,null,null,null,"17 - Asian & White"]
[null,null,"(2)",null,null,null,null,null,null,null,null,null,null,null,null,null,null,null,null,null,null,null,null,null,null,null,null,null,null,null,null,null,null,null,null,null,null,null,null,null,null,null,null,null,null,null,null,null,null,null,null,null,null,null,null,null,null,null,null,null,null,null,null,null,null,null,null,null,null,null,null,null,null,null,null,null,null,null,null,null,null,"(8)"]
[null,null,null,null,null,null,null,null,null,null,null,null,null,null,null,null,null,null,null,null,null,null,"Hispanic Ethnicity",null,null,null,null,null,null,null,null,null,null,null,null,null,null,null,null,null,null,null,null,"18 - Black/African American & White"]
[null,null,"Occupancy",null,null,null,null,null,null,null,null,null,null,null,null,null,null,null,null,null,null,null,null,null,null,null,null,null,null,null,null,null,null,null,null,null,null,null,null,null,null,null,null,null,null,null,null,null,null,null,null,null,null,null,null,null,null,null,null,null,null,null,null,null,null,null,null,null,null,null,null,null,null,null,null,null,null,null,null,null,null,"Household Type",null,null,null,null,null,null,null,null,null,null,null,null,null,null,null,null,null,null,null,null,"(13)"]
[null,null,null,null,null,null,null,null,null,null,null,null,null,null,null,null,null,null,null,null,null,null,"Head of Household",null,null,null,null,null,null,null,null,null,null,null,null,null,null,null,null,null,null,null,null,"19 - American Indian/Alaskan Native & "]
[null,null,null,null,null,null,null,null,null,null,null,null,null,null,null,null,null,null,null,null,null,null,null,null,null,null,null,null,null,null,null,null,null,null,null,null,null,null,null,null,null,null,null,null,null,null,null,null,null,null,null,null,null,null,null,null,null,null,null,null,null,null,null,null,null,null,null,null,null,null,null,null,null,null,null,null,null,null,null,null,null,null,null,null,null,null,null,null,null,null,null,null,null,null,null,null,null,null,null,null,null,null,"Counceling Provided"]
[null,null,"1 - Tenant",null,null,null,null,null,null,null,null,null,null,null,null,null,null,null,null,null,null,null,null,null,null,null,null,null,null,null,null,null,null,null,null,null," ",null,null,null,null,null,null,null,null,null,null,"African American",null,null,null,null,null,null,null,null,null,null,null,null,null,null,null,null,null,null,null,null,null,null,null,null,null,null,null,null,null,null,null,null,null,"1 - Single/non-Elderly"]
[null,null,null,null,null,null,null,null,null,null,null,null,null,null,null,null,null,null,null,null,null,null,null,"Y - Hispanic"]
[null,null,null,null,null,null,null,null,null,null,null,null,null,null,null,null,null,null,null,null,null,null,null,null,null,null,null,null,null,null,null,null,null,null,null,null,null,null,null,null,null,null,null,"20 -Other Multiracial",null,null,null,null,null,null,null,null,null,null,null,null,null,null,null,null,null,null,null,null,null,null,null,null,null,null,null,null,null,null,null,null,null,null,null,null,null,"2 - Elderly",null,null,null,null,null,null,null,null,null,null,null,null,null,null,null,null,null,null,null,null,"1 - No Counseling"]
[null,null,"2 - Owner"]
[null,null,null,null,null,null,null,null,null,null,null,null,null,null,null,null,null,null,null,null,null,null,null,"N - Not Hispanic",null,null,null,null,null,null,null,null,null,null,null,null,null,null,null,null,null,null,null,null,null,null,null,null,null,null,null,null,null,null,null,null,null,null,null,null,null,null,null,null,null,null,null,null,null,null,null,null,null,null,null,null,null,null,null,null,null,"3 - Related/Single Parent",null,null,null,null,null,null,null,null,null,null,null,null,null,null,null,null,null,null,null,null,"2 - Pre-Counseling"]
[]
[null,null,null,null,null,null,null,null,null,null,null,null,null,null,null,null,null,null,null,null,null,null,null,null,null,null,null,null,null,null,null,null,null,null,null,null,null,null,null,null,null,null,null,null,null,null,null,null,null,null,null,null,null,null,null,null,null,null,null,null,null,null,null,null,null,null,null,null,null,null,null,null,null,null,null,null,null,null,null,null,null,"4 - Related/Two Parent",null,null,null,null,null,null,null,null,null,null,null,null,null,null,null,null,null,null,null,null,"3 - Post Counseling"]
[]
[null,null,null,null,null,null,null,null,null,null,null,null,null,null,null,null,null,null,null,null,null,null,null,null,null,null,null,null,null,null,null,null,null,null,null,null,null,null,null,null,null,null,null,null,null,null,null,null,null,null,null,null,null,null,null,null,null,null,null,null,null,null,null,null,null,null,null,null,null,null,null,null,null,null,null,null,null,null,null,null,null,"5 - Other",null,null,null,null,null,null,null,null,null,null,null,null,null,null,null,null,null,null,null,null,"4 - Both"]
[]
[null,null,null,null,null,null,null,null,null,null,null,null,null,null,null,null,null,null,null,null,null,null,null,null,null,null,null,null,null,null,null,null,null,null,null,null,null,null,null,null,null,null,null,null,null,null,null,null,null,null,null,null,null,null,null,null,null,null,null,null,null,null,null,null,null,null,null,null,null,null,null,null,null,null,null,null,null,null,null,null,null,"9 - Vacant"]
[]
[]
[]
[]
[]
[]
[null,"END OF DOCUMENT"]